[Event "Titled Tuesday Blitz June 29 2021"]
[White "Indianlad"]
[Black "AlexOstrovskiy"]
[WhiteElo "2958"]
[BlackElo "2780"]
[Result "0-1"]
[Round "07"]
[TimeControl "180+1"]
[Date "2021.06.29"]
[WhiteClock "0:00:02"]
[BlackClock "0:00:04"]

1. Nf3 {[%clk 0:03:00]}  g6 {[%clk 0:02:45]} 2. g3 {[%clk 0:02:58]}  Bg7 {[%clk 0:02:46]} 3. Bg2 {[%clk 0:02:59]}  d5 {[%clk 0:02:47]} 4. c4 {[%clk 0:02:58]}  e6 {[%clk 0:02:47]} 5. O-O {[%clk 0:02:58]}  Ne7 {[%clk 0:02:47]} 6. d4 {[%clk 0:02:59]}  O-O {[%clk 0:02:46]} 7. Nc3 {[%clk 0:02:59]}  Nbc6 {[%clk 0:02:46]} 8. e3 {[%clk 0:03:00]}  b6 {[%clk 0:02:45]} 9. b3 {[%clk 0:02:59]}  a5 {[%clk 0:02:44]} 10. Ba3 {[%clk 0:02:57]}  Ba6 {[%clk 0:02:41]} 11. Rc1 {[%clk 0:02:55]}  dxc4 {[%clk 0:02:36]} 12. bxc4 {[%clk 0:02:55]}  Bxc4 {[%clk 0:02:36]} 13. Re1 {[%clk 0:02:56]}  Nb4 {[%clk 0:02:35]} 14. Nd2 {[%clk 0:02:48]}  Bd5 {[%clk 0:02:29]} 15. Nxd5 {[%clk 0:02:47]}  exd5 {[%clk 0:02:24]} 16. Qb3 {[%clk 0:02:46]}  Qd7 {[%clk 0:02:13]} 17. Bb2 {[%clk 0:02:21]}  Rac8 {[%clk 0:01:57]} 18. a3 {[%clk 0:02:20]}  Na6 {[%clk 0:01:54]} 19. Bf1 {[%clk 0:02:20]}  Nb8 {[%clk 0:01:55]} 20. Bb5 {[%clk 0:02:20]}  c6 {[%clk 0:01:52]} 21. Bf1 {[%clk 0:02:20]}  b5 {[%clk 0:01:52]} 22. a4 {[%clk 0:02:20]}  b4 {[%clk 0:01:21]} 23. Qc2 {[%clk 0:02:20]}  Rfe8 {[%clk 0:01:05]} 24. Nb3 {[%clk 0:02:19]}  Qa7 {[%clk 0:00:52]} 25. Qc5 {[%clk 0:02:18]}  Rc7 {[%clk 0:00:35]} 26. Nxa5 {[%clk 0:02:09]}  Nd7 {[%clk 0:00:35]} 27. Qxa7 {[%clk 0:02:09]}  Rxa7 {[%clk 0:00:36]} 28. Nxc6 {[%clk 0:02:09]}  Nxc6 {[%clk 0:00:36]} 29. Rxc6 {[%clk 0:02:10]}  Rxa4 {[%clk 0:00:37]} 30. Rc7 {[%clk 0:02:10]}  Ra2 {[%clk 0:00:33]} 31. Rxd7 {[%clk 0:02:03]}  Rxb2 {[%clk 0:00:33]} 32. Bg2 {[%clk 0:02:03]}  Bf6 {[%clk 0:00:20]} 33. Bxd5 {[%clk 0:02:04]}  Re7 {[%clk 0:00:21]} 34. Rd8+ {[%clk 0:02:03]}  Kg7 {[%clk 0:00:21]} 35. Rb8 {[%clk 0:02:03]}  Bxd4 {[%clk 0:00:20]} 36. Rc1 {[%clk 0:01:50]}  Be5 {[%clk 0:00:20]} 37. Rb5 {[%clk 0:01:49]}  Bc3 {[%clk 0:00:19]} 38. h4 {[%clk 0:01:45]}  h5 {[%clk 0:00:20]} 39. Rd1 {[%clk 0:01:37]}  Rd2 {[%clk 0:00:19]} 40. Rxd2 {[%clk 0:01:37]}  Bxd2 {[%clk 0:00:20]} 41. Kf1 {[%clk 0:01:37]}  Bc3 {[%clk 0:00:20]} 42. Ke2 {[%clk 0:01:37]}  Rd7 {[%clk 0:00:19]} 43. e4 {[%clk 0:01:37]}  Re7 {[%clk 0:00:20]} 44. f4 {[%clk 0:01:37]}  Rc7 {[%clk 0:00:20]} 45. e5 {[%clk 0:01:37]}  Rd7 {[%clk 0:00:20]} 46. Kf3 {[%clk 0:01:33]}  Re7 {[%clk 0:00:20]} 47. g4 {[%clk 0:01:32]}  hxg4+ {[%clk 0:00:21]} 48. Kxg4 {[%clk 0:01:33]}  Bd2 {[%clk 0:00:18]} 49. Kg3 {[%clk 0:01:12]}  Be1+ {[%clk 0:00:18]} 50. Kh3 {[%clk 0:01:12]}  Rc7 {[%clk 0:00:18]} 51. h5 {[%clk 0:01:09]}  gxh5 {[%clk 0:00:16]} 52. f5 {[%clk 0:01:09]}  Bc3 {[%clk 0:00:17]} 53. f6+ {[%clk 0:00:59]}  Kg6 {[%clk 0:00:15]} 54. Bb3 {[%clk 0:00:56]}  Bd4 {[%clk 0:00:13]} 55. Bd5 {[%clk 0:00:53]}  Bxe5 {[%clk 0:00:10]} 56. Rxb4 {[%clk 0:00:51]}  Kxf6 {[%clk 0:00:09]} 57. Rb3 {[%clk 0:00:46]}  Kg6 {[%clk 0:00:07]} 58. Rf3 {[%clk 0:00:43]}  f5 {[%clk 0:00:06]} 59. Be6 {[%clk 0:00:43]}  f4 {[%clk 0:00:06]} 60. Bd5 {[%clk 0:00:44]}  Kg5 {[%clk 0:00:06]} 61. Kg2 {[%clk 0:00:44]}  Rc2+ {[%clk 0:00:06]} 62. Rf2 {[%clk 0:00:44]}  Rc5 {[%clk 0:00:07]} 63. Bf3 {[%clk 0:00:44]}  Bd4 {[%clk 0:00:07]} 64. Rd2 {[%clk 0:00:44]}  Rc4 {[%clk 0:00:07]} 65. Be2 {[%clk 0:00:43]}  Rb4 {[%clk 0:00:07]} 66. Ra2 {[%clk 0:00:43]}  Be5 {[%clk 0:00:06]} 67. Ra5 {[%clk 0:00:42]}  Re4 {[%clk 0:00:07]} 68. Bf3 {[%clk 0:00:41]}  Re3 {[%clk 0:00:07]} 69. Ra8 {[%clk 0:00:41]}  h4 {[%clk 0:00:08]} 70. Rg8+ {[%clk 0:00:41]}  Kf6 {[%clk 0:00:07]} 71. Rh8 {[%clk 0:00:39]}  Kg5 {[%clk 0:00:07]} 72. Rh5+ {[%clk 0:00:39]}  Kf6 {[%clk 0:00:07]} 73. Rxh4 {[%clk 0:00:39]}  Rc3 {[%clk 0:00:07]} 74. Rh6+ {[%clk 0:00:39]}  Kg5 {[%clk 0:00:07]} 75. Rh5+ {[%clk 0:00:39]}  Kf6 {[%clk 0:00:08]} 76. Rh8 {[%clk 0:00:39]}  Rc2+ {[%clk 0:00:08]} 77. Kh3 {[%clk 0:00:38]}  Ke7 {[%clk 0:00:08]} 78. Ra8 {[%clk 0:00:37]}  Bd4 {[%clk 0:00:08]} 79. Kg4 {[%clk 0:00:37]}  Rc3 {[%clk 0:00:06]} 80. Ra4 {[%clk 0:00:34]}  Bc5 {[%clk 0:00:06]} 81. Re4+ {[%clk 0:00:34]}  Kd8 {[%clk 0:00:06]} 82. Re5 {[%clk 0:00:34]}  Bd6 {[%clk 0:00:06]} 83. Rd5 {[%clk 0:00:34]}  Ke7 {[%clk 0:00:07]} 84. Rd1 {[%clk 0:00:35]}  Rc5 {[%clk 0:00:07]} 85. Be4 {[%clk 0:00:33]}  Re5 {[%clk 0:00:08]} 86. Bd5 {[%clk 0:00:31]}  Re3 {[%clk 0:00:07]} 87. Bf3 {[%clk 0:00:31]}  Re6 {[%clk 0:00:07]} 88. Rh1 {[%clk 0:00:32]}  Rg6+ {[%clk 0:00:08]} 89. Kf5 {[%clk 0:00:32]}  Rf6+ {[%clk 0:00:08]} 90. Ke4 {[%clk 0:00:33]}  Re6+ {[%clk 0:00:09]} 91. Kd4 {[%clk 0:00:32]}  Be5+ {[%clk 0:00:08]} 92. Kd5 {[%clk 0:00:32]}  Bg7 {[%clk 0:00:04]} 93. Rb1 {[%clk 0:00:29]}  Re5+ {[%clk 0:00:04]} 94. Kc4 {[%clk 0:00:29]}  Re3 {[%clk 0:00:04]} 95. Bd5 {[%clk 0:00:27]}  Be5 {[%clk 0:00:03]} 96. Rb6 {[%clk 0:00:25]}  Rc3+ {[%clk 0:00:02]} 97. Kb4 {[%clk 0:00:25]}  Re3 {[%clk 0:00:03]} 98. Re6+ {[%clk 0:00:24]}  Kd7 {[%clk 0:00:03]} 99. Kc4 {[%clk 0:00:25]}  f3 {[%clk 0:00:03]} 100. Rb6 {[%clk 0:00:15]}  f2 {[%clk 0:00:03]} 101. Bg2 {[%clk 0:00:16]}  Rc3+ {[%clk 0:00:03]} 102. Kd5 {[%clk 0:00:16]}  Rg3 {[%clk 0:00:03]} 103. Bf1 {[%clk 0:00:15]}  Bc7 {[%clk 0:00:04]} 104. Bb5+ {[%clk 0:00:14]}  Kd8 {[%clk 0:00:03]} 105. Re6 {[%clk 0:00:14]}  Rg5+ {[%clk 0:00:04]} 106. Kc4 {[%clk 0:00:14]}  Rxb5 {[%clk 0:00:04]} 107. Rf6 {[%clk 0:00:14]}  Rb2 {[%clk 0:00:04]} 108. Kd3 {[%clk 0:00:13]}  Ra2 {[%clk 0:00:03]} 109. Ke4 {[%clk 0:00:10]}  Ke7 {[%clk 0:00:04]} 110. Rf3 {[%clk 0:00:09]}  Bb6 {[%clk 0:00:04]} 111. Kf5 {[%clk 0:00:09]}  Ra5+ {[%clk 0:00:04]} 112. Kg4 {[%clk 0:00:10]}  Re5 {[%clk 0:00:05]} 113. Kh3 {[%clk 0:00:06]}  Re1 {[%clk 0:00:04]} 114. Kg2 {[%clk 0:00:05]}  Rg1+ {[%clk 0:00:05]} 115. Kh2 {[%clk 0:00:05]}  Ke6 {[%clk 0:00:03]} 116. Rf4 {[%clk 0:00:02]}  Rg8 {[%clk 0:00:03]} 117. Rf3 {[%clk 0:00:02]}  Ke5 {[%clk 0:00:03]} 118. Rf7 {[%clk 0:00:02]}  Ke4 {[%clk 0:00:03]} 119. Re7+ {[%clk 0:00:03]}  Kf3 {[%clk 0:00:04]} 120. Rf7+ {[%clk 0:00:03]}  Ke2 {[%clk 0:00:04]} 121. Re7+ {[%clk 0:00:03]}  Be3 {[%clk 0:00:05]} 122. Rd7 {[%clk 0:00:01]}  Rh8+ {[%clk 0:00:04]} 123. Kg3 {[%clk 0:00:02]}  f1=Q {[%clk 0:00:04]} 0-1


[Site "https://www.chess.com"]

[Event "Titled Tuesday Blitz June 29 2021"]
[White "JonahWillow"]
[Black "BlackBoarder"]
[WhiteElo "2708"]
[BlackElo "2575"]
[Result "1-0"]
[Round "07"]
[TimeControl "180+1"]
[Date "2021.06.29"]
[WhiteClock "0:00:25"]
[BlackClock "0:00:03"]

1. e4 {[%clk 0:03:00]}  e6 {[%clk 0:03:00]} 2. d3 {[%clk 0:03:00]}  d5 {[%clk 0:03:00]} 3. Nd2 {[%clk 0:03:00]}  Nf6 {[%clk 0:03:00]} 4. g3 {[%clk 0:02:59]}  dxe4 {[%clk 0:02:59]} 5. dxe4 {[%clk 0:02:59]}  Bc5 {[%clk 0:02:59]} 6. Bg2 {[%clk 0:02:58]}  O-O {[%clk 0:02:59]} 7. Ngf3 {[%clk 0:02:58]}  Nc6 {[%clk 0:02:59]} 8. O-O {[%clk 0:02:57]}  e5 {[%clk 0:02:59]} 9. c3 {[%clk 0:02:56]}  a5 {[%clk 0:02:58]} 10. Qc2 {[%clk 0:02:55]}  Be6 {[%clk 0:02:46]} 11. Rd1 {[%clk 0:02:51]}  Ng4 {[%clk 0:02:31]} 12. Rf1 {[%clk 0:02:35]}  Qd7 {[%clk 0:02:19]} 13. Ng5 {[%clk 0:02:28]}  Rad8 {[%clk 0:01:54]} 14. h3 {[%clk 0:02:11]}  Nf6 {[%clk 0:01:33]} 15. a4 {[%clk 0:01:59]}  h6 {[%clk 0:00:50]} 16. Nxe6 {[%clk 0:01:58]}  Qxe6 {[%clk 0:00:45]} 17. b3 {[%clk 0:01:38]}  Nh5 {[%clk 0:00:39]} 18. Kh2 {[%clk 0:01:26]}  Ne7 {[%clk 0:00:36]} 19. Nc4 {[%clk 0:01:14]}  b6 {[%clk 0:00:34]} 20. Ne3 {[%clk 0:01:05]}  Bxe3 {[%clk 0:00:31]} 21. Bxe3 {[%clk 0:01:05]}  Nf6 {[%clk 0:00:30]} 22. Rad1 {[%clk 0:01:02]}  Nc8 {[%clk 0:00:29]} 23. f4 {[%clk 0:00:58]}  exf4 {[%clk 0:00:25]} 24. gxf4 {[%clk 0:00:57]}  Nd5 {[%clk 0:00:16]} 25. Bd4 {[%clk 0:00:38]}  Nf6 {[%clk 0:00:16]} 26. e5 {[%clk 0:00:35]}  Nd5 {[%clk 0:00:14]} 27. f5 {[%clk 0:00:35]}  Qe7 {[%clk 0:00:12]} 28. f6 {[%clk 0:00:33]}  Qe6 {[%clk 0:00:11]} 29. fxg7 {[%clk 0:00:33]}  Kxg7 {[%clk 0:00:10]} 30. Be4 {[%clk 0:00:31]}  Nce7 {[%clk 0:00:10]} 31. Rf6 {[%clk 0:00:29]}  Nxf6 {[%clk 0:00:05]} 32. exf6+ {[%clk 0:00:29]}  Kg8 {[%clk 0:00:05]} 33. fxe7 {[%clk 0:00:25]}  Qxe7 {[%clk 0:00:03]} 34. Rg1+ {[%clk 0:00:25]} 1-0


[Site "https://www.chess.com"]

[Event "Titled Tuesday Blitz June 29 2021"]
[White "KarateBaby"]
[Black "Murad_Ibrahimli"]
[WhiteElo "2404"]
[BlackElo "2836"]
[Result "0-1"]
[Round "07"]
[TimeControl "180+1"]
[Date "2021.06.29"]
[WhiteClock "0:00:13"]
[BlackClock "0:00:22"]

1. Nf3 {[%clk 0:02:57]}  Nf6 {[%clk 0:02:59]} 2. c4 {[%clk 0:02:57]}  e6 {[%clk 0:02:58]} 3. Nc3 {[%clk 0:02:58]}  d5 {[%clk 0:02:58]} 4. e3 {[%clk 0:02:58]}  c5 {[%clk 0:02:55]} 5. cxd5 {[%clk 0:02:58]}  exd5 {[%clk 0:02:53]} 6. d4 {[%clk 0:02:58]}  Nc6 {[%clk 0:02:50]} 7. Bb5 {[%clk 0:02:56]}  Bd6 {[%clk 0:02:44]} 8. dxc5 {[%clk 0:02:52]}  Bxc5 {[%clk 0:02:45]} 9. O-O {[%clk 0:02:53]}  O-O {[%clk 0:02:45]} 10. b3 {[%clk 0:02:51]}  Bg4 {[%clk 0:02:42]} 11. Bb2 {[%clk 0:02:50]}  Rc8 {[%clk 0:02:39]} 12. Rc1 {[%clk 0:02:42]}  Bd6 {[%clk 0:02:34]} 13. h3 {[%clk 0:02:29]}  Bh5 {[%clk 0:02:32]} 14. Ne2 {[%clk 0:02:17]}  Ne4 {[%clk 0:02:04]} 15. Bxc6 {[%clk 0:01:46]}  bxc6 {[%clk 0:02:02]} 16. Qd4 {[%clk 0:01:46]}  f6 {[%clk 0:01:56]} 17. Rxc6 {[%clk 0:01:44]}  Bh2+ {[%clk 0:01:46]} 18. Nxh2 {[%clk 0:01:36]}  Rxc6 {[%clk 0:01:45]} 19. Nf4 {[%clk 0:01:37]}  Bf7 {[%clk 0:01:43]} 20. Rd1 {[%clk 0:01:35]}  Rc2 {[%clk 0:01:35]} 21. Ba3 {[%clk 0:01:25]}  Re8 {[%clk 0:01:28]} 22. Rf1 {[%clk 0:00:51]}  Rxa2 {[%clk 0:01:25]} 23. Bb2 {[%clk 0:00:47]}  Qb6 {[%clk 0:01:13]} 24. Qxb6 {[%clk 0:00:24]}  axb6 {[%clk 0:01:14]} 25. Bd4 {[%clk 0:00:24]}  b5 {[%clk 0:01:10]} 26. Nf3 {[%clk 0:00:24]}  Rc8 {[%clk 0:01:08]} 27. Nd3 {[%clk 0:00:24]}  Ra3 {[%clk 0:01:01]} 28. Rb1 {[%clk 0:00:22]}  Bg6 {[%clk 0:00:59]} 29. Nh4 {[%clk 0:00:19]}  Nd2 {[%clk 0:00:48]} 30. Nxg6 {[%clk 0:00:17]}  hxg6 {[%clk 0:00:48]} 31. Rb2 {[%clk 0:00:15]}  Ra1+ {[%clk 0:00:44]} 32. Kh2 {[%clk 0:00:15]}  Nf1+ {[%clk 0:00:45]} 33. Kg1 {[%clk 0:00:15]}  Nxe3+ {[%clk 0:00:40]} 34. Kh2 {[%clk 0:00:16]}  Nf1+ {[%clk 0:00:40]} 35. Kg1 {[%clk 0:00:16]}  Rd1 {[%clk 0:00:35]} 36. Nf4 {[%clk 0:00:16]}  Rxd4 {[%clk 0:00:25]} 37. Nxg6 {[%clk 0:00:13]}  Rc1 {[%clk 0:00:25]} 38. Ne7+ {[%clk 0:00:12]}  Kf7 {[%clk 0:00:25]} 39. Nf5 {[%clk 0:00:13]}  Ng3+ {[%clk 0:00:22]} 0-1


[Site "https://www.chess.com"]

[Event "Titled Tuesday Blitz June 29 2021"]
[White "Khamrakulov_Djurabek"]
[Black "Hikaru"]
[WhiteElo "2834"]
[BlackElo "3155"]
[Result "0-1"]
[Round "07"]
[TimeControl "180+1"]
[Date "2021.06.29"]
[WhiteClock "0:00:04"]
[BlackClock "0:00:10"]

1. e4 {[%clk 0:03:00]}  d5 {[%clk 0:02:59]} 2. exd5 {[%clk 0:03:00]}  Qxd5 {[%clk 0:03:00]} 3. d4 {[%clk 0:03:01]}  Nc6 {[%clk 0:02:58]} 4. Nf3 {[%clk 0:03:01]}  Bg4 {[%clk 0:02:59]} 5. Be2 {[%clk 0:03:01]}  O-O-O {[%clk 0:02:50]} 6. Be3 {[%clk 0:03:00]}  e5 {[%clk 0:02:46]} 7. Nc3 {[%clk 0:02:58]}  Qa5 {[%clk 0:02:30]} 8. Nxe5 {[%clk 0:02:56]}  Bxe2 {[%clk 0:02:21]} 9. Qxe2 {[%clk 0:02:50]}  Nxe5 {[%clk 0:02:21]} 10. dxe5 {[%clk 0:02:50]}  Qxe5 {[%clk 0:02:22]} 11. O-O {[%clk 0:02:50]}  Nf6 {[%clk 0:02:22]} 12. Rad1 {[%clk 0:02:49]}  Bb4 {[%clk 0:02:17]} 13. Nb5 {[%clk 0:02:33]}  Bc5 {[%clk 0:02:03]} 14. Nc3 {[%clk 0:01:58]}  Rde8 {[%clk 0:01:48]} 15. Rfe1 {[%clk 0:01:51]}  Bxe3 {[%clk 0:01:43]} 16. Qxe3 {[%clk 0:01:48]}  Qxe3 {[%clk 0:01:43]} 17. Rxe3 {[%clk 0:01:49]}  Rxe3 {[%clk 0:01:43]} 18. fxe3 {[%clk 0:01:49]}  Re8 {[%clk 0:01:44]} 19. Rd3 {[%clk 0:01:46]}  Ng4 {[%clk 0:01:44]} 20. Nd1 {[%clk 0:01:44]}  f5 {[%clk 0:01:42]} 21. h3 {[%clk 0:01:35]}  Ne5 {[%clk 0:01:41]} 22. Rd4 {[%clk 0:01:35]}  g6 {[%clk 0:01:35]} 23. Kf2 {[%clk 0:01:33]}  c5 {[%clk 0:01:31]} 24. Rd5 {[%clk 0:01:33]}  b6 {[%clk 0:01:31]} 25. b3 {[%clk 0:01:32]}  Kc7 {[%clk 0:01:25]} 26. c4 {[%clk 0:01:32]}  Kc6 {[%clk 0:01:23]} 27. Nc3 {[%clk 0:01:32]}  a6 {[%clk 0:01:23]} 28. a4 {[%clk 0:01:22]}  Nd7 {[%clk 0:01:21]} 29. Kf3 {[%clk 0:01:16]}  Nf6 {[%clk 0:01:19]} 30. Rd3 {[%clk 0:01:10]}  g5 {[%clk 0:01:19]} 31. Nd5 {[%clk 0:01:04]}  Nd7 {[%clk 0:01:19]} 32. Rd1 {[%clk 0:00:54]}  h5 {[%clk 0:01:17]} 33. Ke2 {[%clk 0:00:43]}  f4 {[%clk 0:01:03]} 34. Kd2 {[%clk 0:00:41]}  fxe3+ {[%clk 0:01:03]} 35. Nxe3 {[%clk 0:00:41]}  Nf6 {[%clk 0:00:40]} 36. Rf1 {[%clk 0:00:40]}  Rd8+ {[%clk 0:00:36]} 37. Kc2 {[%clk 0:00:36]}  Ne4 {[%clk 0:00:33]} 38. Nd5 {[%clk 0:00:36]}  b5 {[%clk 0:00:30]} 39. Kd3 {[%clk 0:00:32]}  Nd6 {[%clk 0:00:26]} 40. Re1 {[%clk 0:00:23]}  bxc4+ {[%clk 0:00:23]} 41. bxc4 {[%clk 0:00:23]}  Nxc4 {[%clk 0:00:20]} 42. Kxc4 {[%clk 0:00:23]}  Rxd5 {[%clk 0:00:20]} 43. Re6+ {[%clk 0:00:21]}  Rd6 {[%clk 0:00:20]} 44. Re5 {[%clk 0:00:21]}  Rd4+ {[%clk 0:00:21]} 45. Kc3 {[%clk 0:00:21]}  Rxa4 {[%clk 0:00:20]} 46. Rxg5 {[%clk 0:00:21]}  h4 {[%clk 0:00:21]} 47. Rg6+ {[%clk 0:00:14]}  Kb5 {[%clk 0:00:21]} 48. Rg8 {[%clk 0:00:12]}  Ra3+ {[%clk 0:00:21]} 49. Kb2 {[%clk 0:00:13]}  Re3 {[%clk 0:00:21]} 50. Rg4 {[%clk 0:00:12]}  c4 {[%clk 0:00:21]} 51. Rxh4 {[%clk 0:00:11]}  Kb4 {[%clk 0:00:21]} 52. Rg4 {[%clk 0:00:07]}  Re2+ {[%clk 0:00:21]} 53. Kc1 {[%clk 0:00:08]}  Kb3 {[%clk 0:00:22]} 54. Kd1 {[%clk 0:00:06]}  Re5 {[%clk 0:00:19]} 55. Rg6 {[%clk 0:00:06]}  a5 {[%clk 0:00:12]} 56. h4 {[%clk 0:00:04]}  Rb5 {[%clk 0:00:10]} 57. g4 {[%clk 0:00:04]}  Kb2 {[%clk 0:00:10]} 0-1


[Site "https://www.chess.com"]

[Event "Titled Tuesday Blitz June 29 2021"]
[White "Koalaskakistis"]
[Black "MLev0907"]
[WhiteElo "2580"]
[BlackElo "2437"]
[Result "1-0"]
[Round "07"]
[TimeControl "180+1"]
[Date "2021.06.29"]
[WhiteClock "0:00:24"]
[BlackClock "0:00:03"]

1. Nf3 {[%clk 0:02:59]}  Nf6 {[%clk 0:02:58]} 2. g3 {[%clk 0:03:00]}  e6 {[%clk 0:02:58]} 3. Bg2 {[%clk 0:03:00]}  d5 {[%clk 0:02:59]} 4. O-O {[%clk 0:03:01]}  Be7 {[%clk 0:02:59]} 5. d3 {[%clk 0:03:01]}  O-O {[%clk 0:02:59]} 6. Nbd2 {[%clk 0:03:02]}  c5 {[%clk 0:02:59]} 7. e4 {[%clk 0:03:02]}  Nc6 {[%clk 0:02:59]} 8. e5 {[%clk 0:02:58]}  Nd7 {[%clk 0:02:58]} 9. Re1 {[%clk 0:02:58]}  b5 {[%clk 0:02:54]} 10. Nf1 {[%clk 0:02:58]}  Bb7 {[%clk 0:02:51]} 11. h4 {[%clk 0:02:58]}  Qc7 {[%clk 0:02:50]} 12. Bf4 {[%clk 0:02:57]}  Rfc8 {[%clk 0:02:48]} 13. N1h2 {[%clk 0:02:57]}  a5 {[%clk 0:02:34]} 14. Ng5 {[%clk 0:02:46]}  h6 {[%clk 0:02:25]} 15. Qh5 {[%clk 0:02:44]}  hxg5 {[%clk 0:02:24]} 16. hxg5 {[%clk 0:02:45]}  Nf8 {[%clk 0:02:02]} 17. Ng4 {[%clk 0:02:43]}  Ng6 {[%clk 0:01:58]} 18. Kh2 {[%clk 0:02:05]}  Kf8 {[%clk 0:01:41]} 19. Bxd5 {[%clk 0:01:50]}  Nd4 {[%clk 0:01:28]} 20. Bxb7 {[%clk 0:01:43]}  Qxb7 {[%clk 0:01:28]} 21. Nf6 {[%clk 0:01:44]}  Qf3 {[%clk 0:01:05]} 22. Qh7 {[%clk 0:01:34]}  Qxf2+ {[%clk 0:00:51]} 23. Kh1 {[%clk 0:01:34]}  Bxf6 {[%clk 0:00:31]} 24. exf6 {[%clk 0:01:28]}  gxf6 {[%clk 0:00:29]} 25. gxf6 {[%clk 0:01:15]}  Nf5 {[%clk 0:00:20]} 26. Re4 {[%clk 0:00:50]}  Qf3+ {[%clk 0:00:15]} 27. Kg1 {[%clk 0:00:49]}  Ke8 {[%clk 0:00:08]} 28. Rxe6+ {[%clk 0:00:33]}  fxe6 {[%clk 0:00:08]} 29. Qxg6+ {[%clk 0:00:34]}  Kd7 {[%clk 0:00:09]} 30. Qf7+ {[%clk 0:00:34]}  Kc6 {[%clk 0:00:08]} 31. Qxe6+ {[%clk 0:00:33]}  Kb7 {[%clk 0:00:08]} 32. Qxf5 {[%clk 0:00:33]}  Rg8 {[%clk 0:00:07]} 33. Qd7+ {[%clk 0:00:34]}  Ka6 {[%clk 0:00:06]} 34. Qd6+ {[%clk 0:00:25]}  Kb7 {[%clk 0:00:05]} 35. Rf1 {[%clk 0:00:25]}  Rxg3+ {[%clk 0:00:03]} 36. Bxg3 {[%clk 0:00:25]}  Qe3+ {[%clk 0:00:04]} 37. Kg2 {[%clk 0:00:25]}  Rg8 {[%clk 0:00:03]} 38. f7 {[%clk 0:00:24]}  Qe2+ {[%clk 0:00:03]} 39. Rf2 {[%clk 0:00:24]} 1-0


[Site "https://www.chess.com"]

[Event "Titled Tuesday Blitz June 29 2021"]
[White "LileKoridze"]
[Black "Willhaven3"]
[WhiteElo "2389"]
[BlackElo "2560"]
[Result "0-1"]
[Round "07"]
[TimeControl "180+1"]
[Date "2021.06.29"]
[WhiteClock "0:00:44"]
[BlackClock "0:00:59"]

1. d4 {[%clk 0:03:00]}  Nf6 {[%clk 0:02:58]} 2. c4 {[%clk 0:03:00]}  e6 {[%clk 0:02:59]} 3. g3 {[%clk 0:02:57]}  d5 {[%clk 0:02:57]} 4. Bg2 {[%clk 0:02:57]}  Be7 {[%clk 0:02:58]} 5. Nf3 {[%clk 0:02:57]}  O-O {[%clk 0:02:58]} 6. O-O {[%clk 0:02:57]}  dxc4 {[%clk 0:02:58]} 7. Ne5 {[%clk 0:02:56]}  Nc6 {[%clk 0:02:58]} 8. Nxc6 {[%clk 0:02:55]}  bxc6 {[%clk 0:02:57]} 9. Na3 {[%clk 0:02:54]}  Bxa3 {[%clk 0:02:55]} 10. bxa3 {[%clk 0:02:53]}  Ba6 {[%clk 0:02:55]} 11. Qd2 {[%clk 0:02:17]}  Rb8 {[%clk 0:02:54]} 12. Qa5 {[%clk 0:02:14]}  Rb6 {[%clk 0:02:53]} 13. Rd1 {[%clk 0:02:11]}  Qc8 {[%clk 0:02:34]} 14. a4 {[%clk 0:01:59]}  Rd8 {[%clk 0:02:31]} 15. Ba3 {[%clk 0:01:58]}  Nd5 {[%clk 0:02:24]} 16. e4 {[%clk 0:01:56]}  Nf6 {[%clk 0:02:18]} 17. Qg5 {[%clk 0:01:51]}  c3 {[%clk 0:02:03]} 18. Be7 {[%clk 0:01:49]}  h6 {[%clk 0:01:57]} 19. Qh4 {[%clk 0:01:48]}  c2 {[%clk 0:01:39]} 20. Rdc1 {[%clk 0:01:41]}  Rxd4 {[%clk 0:01:37]} 21. Bc5 {[%clk 0:01:30]}  Rd2 {[%clk 0:01:30]} 22. Bxb6 {[%clk 0:01:28]}  cxb6 {[%clk 0:01:29]} 23. Qf4 {[%clk 0:01:28]}  Qd7 {[%clk 0:01:27]} 24. Bf3 {[%clk 0:01:26]}  Qd4 {[%clk 0:01:01]} 25. Qb8+ {[%clk 0:00:50]}  Kh7 {[%clk 0:01:00]} 26. Qxa7 {[%clk 0:00:44]}  Qxf2+ {[%clk 0:00:59]} 0-1


[Site "https://www.chess.com"]

[Event "Titled Tuesday Blitz June 29 2021"]
[White "MFBerna"]
[Black "Kretov_Evgenij"]
[WhiteElo "2400"]
[BlackElo "2640"]
[Result "0-1"]
[Round "07"]
[TimeControl "180+1"]
[Date "2021.06.29"]
[WhiteClock "0:00:04"]
[BlackClock "0:00:20"]

1. e4 {[%clk 0:03:00]}  c5 {[%clk 0:02:11]} 2. Nf3 {[%clk 0:02:59]}  Nc6 {[%clk 0:02:11]} 3. d4 {[%clk 0:03:00]}  cxd4 {[%clk 0:02:12]} 4. Nxd4 {[%clk 0:03:01]}  g6 {[%clk 0:02:12]} 5. Nc3 {[%clk 0:03:01]}  Bg7 {[%clk 0:02:12]} 6. Nb3 {[%clk 0:02:58]}  Nf6 {[%clk 0:02:13]} 7. Be2 {[%clk 0:02:58]}  O-O {[%clk 0:02:13]} 8. O-O {[%clk 0:02:59]}  d6 {[%clk 0:02:13]} 9. Re1 {[%clk 0:02:57]}  a5 {[%clk 0:02:13]} 10. a4 {[%clk 0:02:57]}  Be6 {[%clk 0:02:13]} 11. Bf1 {[%clk 0:02:57]}  Nd7 {[%clk 0:02:10]} 12. Nd5 {[%clk 0:02:50]}  Rc8 {[%clk 0:01:56]} 13. c3 {[%clk 0:02:50]}  Nce5 {[%clk 0:01:51]} 14. Nd4 {[%clk 0:02:46]}  Bxd5 {[%clk 0:01:45]} 15. exd5 {[%clk 0:02:47]}  Nc5 {[%clk 0:01:40]} 16. Bb5 {[%clk 0:02:39]}  h6 {[%clk 0:01:37]} 17. Qe2 {[%clk 0:02:35]}  g5 {[%clk 0:01:30]} 18. Nf5 {[%clk 0:02:30]}  Nb3 {[%clk 0:01:26]} 19. Rb1 {[%clk 0:02:19]}  Nxc1 {[%clk 0:01:25]} 20. Rbxc1 {[%clk 0:02:19]}  e6 {[%clk 0:01:22]} 21. Nxg7 {[%clk 0:02:07]}  Kxg7 {[%clk 0:01:22]} 22. Rcd1 {[%clk 0:02:02]}  Qe7 {[%clk 0:01:20]} 23. Rd4 {[%clk 0:01:50]}  Rc5 {[%clk 0:01:09]} 24. Red1 {[%clk 0:01:45]}  exd5 {[%clk 0:01:00]} 25. Rxd5 {[%clk 0:01:46]}  Rxd5 {[%clk 0:00:59]} 26. Rxd5 {[%clk 0:01:47]}  Qe6 {[%clk 0:00:54]} 27. Qd2 {[%clk 0:01:44]}  Rd8 {[%clk 0:00:53]} 28. Qd4 {[%clk 0:01:43]}  f6 {[%clk 0:00:50]} 29. Bf1 {[%clk 0:01:39]}  Nc6 {[%clk 0:00:47]} 30. Qd2 {[%clk 0:01:32]}  Rd7 {[%clk 0:00:46]} 31. b4 {[%clk 0:01:25]}  axb4 {[%clk 0:00:46]} 32. cxb4 {[%clk 0:01:26]}  Ne7 {[%clk 0:00:46]} 33. Rd4 {[%clk 0:01:20]}  d5 {[%clk 0:00:46]} 34. h3 {[%clk 0:01:12]}  Nc6 {[%clk 0:00:46]} 35. Rd3 {[%clk 0:01:10]}  d4 {[%clk 0:00:45]} 36. b5 {[%clk 0:01:04]}  Ne5 {[%clk 0:00:44]} 37. Rxd4 {[%clk 0:01:04]}  Rc7 {[%clk 0:00:38]} 38. Rd6 {[%clk 0:00:54]}  Qf5 {[%clk 0:00:36]} 39. Qe3 {[%clk 0:00:40]}  Qb1 {[%clk 0:00:34]} 40. Qe2 {[%clk 0:00:22]}  Rc1 {[%clk 0:00:32]} 41. Rb6 {[%clk 0:00:17]}  Rc7 {[%clk 0:00:27]} 42. Rd6 {[%clk 0:00:17]}  Qb4 {[%clk 0:00:26]} 43. Rd5 {[%clk 0:00:15]}  Rc1 {[%clk 0:00:23]} 44. Rxe5 {[%clk 0:00:12]}  fxe5 {[%clk 0:00:23]} 45. Qxe5+ {[%clk 0:00:13]}  Kf7 {[%clk 0:00:22]} 46. Qd5+ {[%clk 0:00:09]}  Kf6 {[%clk 0:00:22]} 47. Qf3+ {[%clk 0:00:07]}  Qf4 {[%clk 0:00:19]} 48. Qxf4+ {[%clk 0:00:05]}  gxf4 {[%clk 0:00:19]} 49. a5 {[%clk 0:00:06]}  Ke5 {[%clk 0:00:19]} 50. a6 {[%clk 0:00:05]}  bxa6 {[%clk 0:00:19]} 51. bxa6 {[%clk 0:00:06]}  Ra1 {[%clk 0:00:20]} 52. f3 {[%clk 0:00:04]}  Kd4 {[%clk 0:00:20]} 53. Kf2 {[%clk 0:00:05]}  Ra2+ {[%clk 0:00:20]} 54. Be2 {[%clk 0:00:05]}  h5 {[%clk 0:00:21]} 55. h4 {[%clk 0:00:05]}  Ra1 {[%clk 0:00:20]} 56. g3 {[%clk 0:00:03]}  fxg3+ {[%clk 0:00:19]} 57. Kxg3 {[%clk 0:00:04]}  Ke3 {[%clk 0:00:19]} 58. Bb5 {[%clk 0:00:03]}  Ra5 {[%clk 0:00:19]} 59. Bc4 {[%clk 0:00:02]}  Ra4 {[%clk 0:00:20]} 60. Bb5 {[%clk 0:00:02]}  Ra5 {[%clk 0:00:20]} 61. Bc4 {[%clk 0:00:03]}  Kd4 {[%clk 0:00:20]} 62. Bf1 {[%clk 0:00:02]}  Ke3 {[%clk 0:00:21]} 63. Bb5 {[%clk 0:00:02]}  Rxb5 {[%clk 0:00:21]} 64. f4 {[%clk 0:00:02]}  Ra5 {[%clk 0:00:20]} 65. f5 {[%clk 0:00:03]}  Rxf5 {[%clk 0:00:20]} 66. a7 {[%clk 0:00:04]} 0-1


[Site "https://www.chess.com"]